bitfinex/quotes_BTCUSD_20250417
["timestamp","ask_amount","ask_price","bid_price","bid_amount"]
[1744858284645,0.2376567,84155.0,84154.0,0.0482]
[1744858285032,0.2396567,84155.0,84154.0,0.0472]
[1744858285439,0.2436567,84155.0,84154.0,0.0482]
[1744858286076,0.2436567,84155.0,84154.0,0.001]
[1744858286525,0.36310461,84155.0,84154.0,0.001]
[1744858286720,0.70310461,84155.0,84154.0,0.001]
[1744858288599,0.72764546,84155.0,84154.0,0.001]
[1744858289339,0.71764546,84155.0,84154.0,0.001]
[1744858290916,0.72764546,84155.0,84154.0,0.001]
[1744858291136,0.89239337,84155.0,84154.0,0.001]
[1744858291508,1.36079025,84155.0,84154.0,0.001]
[1744858291934,1.35879025,84155.0,84154.0,0.001]
[1744858292266,0.23771037,84136.0,84135.0,0.000421]
[1744858292428,0.35715828,84136.0,84135.0,0.000421]
[1744858294745,0.36015828,84136.0,84135.0,0.000421]
[1744858294943,0.24071037,84136.0,84135.0,0.000421]
[1744858300251,0.36015828,84136.0,84135.0,0.000421]
[1744858307556,0.70015828,84136.0,84135.0,0.000421]
[1744858307751,0.78069913,84136.0,84135.0,0.000421]
[1744858308841,0.77969913,84136.0,84135.0,0.000421]
[1744858309089,0.80186814,84136.0,84135.0,0.000421]
[1744858309592,0.79986814,84136.0,84135.0,0.000421]
[1744858309822,0.80386814,84136.0,84135.0,0.000421]
[1744858310823,0.81086814,84136.0,84135.0,0.001421]
[1744858313923,0.93031605,84136.0,84135.0,0.001421]
[1744858314217,0.90814704,84136.0,84135.0,0.001421]
[1744858314414,0.86214704,84136.0,84135.0,0.001421]
[1744858315003,0.88432686,84136.0,84135.0,0.001421]
[1744858315584,0.76487895,84136.0,84135.0,0.001421]
[1744858315985,0.74269913,84136.0,84135.0,0.001421]
[1744858317203,0.76489583,84136.0,84135.0,0.001421]
[1744858321058,0.74269913,84136.0,84135.0,0.001421]
[1744858322435,0.75188848,84136.0,84135.0,0.001421]
[1744858323017,0.73188848,84136.0,84135.0,0.001421]
[1744858325108,0.71734763,84136.0,84135.0,0.001421]
[1744858327698,0.59789972,84136.0,84135.0,0.047321]
[1744858329923,0.02018935,84136.0,84135.0,0.047321]
[1744858330125,0.25789972,84136.0,84135.0,0.047321]
[1744858330852,0.25389972,84136.0,84135.0,0.047321]
[1744858331045,0.25589972,84136.0,84135.0,0.046321]
[1744858331245,0.24889972,84136.0,84135.0,0.046321]
[1744858331457,0.25289972,84136.0,84135.0,0.047321]
[1744858334353,0.25289972,84136.0,84135.0,0.001421]
[1744858335353,0.37234763,84136.0,84135.0,0.001421]
[1744858341365,0.25289972,84136.0,84135.0,0.001421]
[1744858358292,0.37234763,84136.0,84135.0,0.001421]
[1744858358642,0.38234763,84136.0,84135.0,0.001421]
[1744858361701,0.37234763,84136.0,84135.0,0.001421]
[1744858363215,0.8279986,84136.0,84135.0,0.001421]
[1744858363360,0.74688848,84136.0,84135.0,0.001421]
[1744858364347,0.74288848,84136.0,84135.0,0.000421]
[1744858364630,0.74088848,84136.0,84135.0,0.000421]
[1744858364780,0.74488848,84136.0,84135.0,0.000421]
[1744858364989,0.75188848,84136.0,84135.0,0.001421]
[1744858367679,0.84988406,84136.0,84135.0,0.001421]
[1744858369374,0.75188848,84136.0,84135.0,0.001421]
[1744858373300,0.59226535,84131.0,84130.0,0.00015808]
[1744858373499,0.86171326,84131.0,84130.0,0.00015808]
[1744858374064,0.84919326,84131.0,84130.0,0.00015808]
[1744858374263,0.69717241,84131.0,84130.0,0.00015808]
[1744858374643,0.5807245,84131.0,84130.0,0.00015808]
[1744858375238,0.5777245,84131.0,84130.0,0.00115808]
[1744858375388,0.5857245,84131.0,84130.0,0.00115808]
[1744858375596,0.5857245,84131.0,84130.0,0.00015808]
[1744858376340,0.5827245,84131.0,84130.0,0.00015808]
[1744858376895,0.5847245,84131.0,84130.0,0.00015808]
[1744858377500,0.5857245,84131.0,84130.0,0.00015808]
[1744858382621,0.60794826,84131.0,84130.0,0.00015808]
[1744858383875,0.72739617,84131.0,84130.0,0.00015808]
[1744858387685,0.73851078,84131.0,84130.0,0.00015808]
[1744858388267,0.72739617,84131.0,84130.0,0.00015808]
[1744858388469,0.72639617,84131.0,84130.0,0.00015808]
[1744858389250,0.70417241,84131.0,84130.0,0.00015808]
[1744858389808,0.70617241,84131.0,84130.0,0.00015808]
[1744858390162,0.72140374,84131.0,84130.0,0.00015808]
[1744858390360,0.72440374,84131.0,84130.0,0.00015808]
[1744858394204,0.70217241,84131.0,84130.0,0.00015808]
[1744858401782,0.5827245,84131.0,84130.0,0.00015808]
[1744858408050,0.60497188,84131.0,84130.0,0.00015808]
[1744858408626,0.5827245,84131.0,84130.0,0.00015808]
[1744858409562,0.5827245,84131.0,84130.0,0.2867854]
[1744858409563,0.005,84131.0,84130.0,0.2867854]
[1744858409760,0.005,84131.0,84130.0,0.3355854]
[1744858410358,0.02107486,84136.0,84133.0,0.048]
[1744858411608,0.23771319,84135.0,84133.0,0.048]
[1744858412571,0.00941447,84134.0,84133.0,0.048]
[1744858413965,0.01041447,84134.0,84133.0,0.048]
[1744858414871,0.01241447,84134.0,84133.0,0.048]
[1744858417065,0.01141447,84134.0,84133.0,0.05633695]
[1744858417474,0.00941447,84134.0,84133.0,0.05633695]
[1744858417930,0.01041447,84134.0,84133.0,0.05833695]
[1744858418611,0.01041447,84134.0,84133.0,0.05]
[1744858423710,0.01041447,84134.0,84133.0,0.0991]
[1744858423985,0.01041447,84134.0,84133.0,0.35760478]
[1744858424290,0.01041447,84134.0,84133.0,0.36355141]
[1744858424657,0.00941447,84134.0,84133.0,0.36255141]
[1744858425446,0.00941447,84134.0,84133.0,0.78035141]
[1744858426248,0.01041447,84134.0,84133.0,0.78335141]
[1744858426454,0.00941447,84134.0,84133.0,0.78035141]
[1744858426648,0.00941447,84134.0,84133.0,0.78335141]
[1744858427110,0.01041447,84134.0,84133.0,0.78435141]
[1744858427572,0.01041447,84134.0,84133.0,0.78735141]
[1744858429168,0.01041447,84134.0,84133.0,1.12735141]
[1744858430031,0.00918935,84136.0,84134.0,0.57771602]
[1744858430246,0.01138958,84160.0,84159.0,0.2376454]
[1744858430869,0.01138958,84160.0,84159.0,0.2400216]
[1744858431455,0.01138958,84160.0,84159.0,0.2859216]
[1744858431666,0.01138958,84160.0,84159.0,0.2835454]
[1744858432985,0.01138958,84160.0,84159.0,0.2845454]
[1744858433572,0.01138958,84160.0,84159.0,0.2855454]
[1744858433970,0.01138958,84160.0,84159.0,0.4221854]
[1744858438561,0.01138958,84160.0,84159.0,0.2855454]
[1744858438715,0.01138958,84160.0,84159.0,0.4218654]
[1744858444297,0.01138958,84160.0,84159.0,0.54131331]
[1744858444845,0.01138958,84160.0,84159.0,0.58981331]
[1744858445277,0.01138958,84160.0,84159.0,0.58881331]
[1744858445655,0.01138958,84160.0,84159.0,0.59281331]
[1744858446018,0.01138958,84160.0,84159.0,0.59181331]
[1744858446246,0.01238958,84160.0,84159.0,0.59781331]
[1744858446977,0.01338958,84160.0,84159.0,0.60481331]
[1744858447781,0.01338958,84160.0,84159.0,0.60081331]
[1744858447977,0.01338958,84160.0,84159.0,0.60481331]
[1744858448986,0.01338958,84160.0,84159.0,1.02361331]
[1744858457030,0.01338958,84160.0,84159.0,0.84139331]
[1744858457206,0.01338958,84160.0,84159.0,0.97767331]
[1744858457388,0.01338958,84160.0,84159.0,0.8097254]
[1744858458237,0.01338958,84160.0,84159.0,0.8057254]
[1744858458578,0.01138958,84160.0,84159.0,0.7957254]
[1744858458888,0.01238958,84160.0,84159.0,0.8007254]
[1744858475210,0.01238958,84160.0,84159.0,0.8472254]
[1744858475347,0.01238958,84160.0,84159.0,0.96667331]
[1744858476198,1e-08,84160.0,84159.0,0.96667331]
[1744858476859,1e-08,84160.0,84159.0,0.83039331]
[1744858477061,1e-08,84160.0,84159.0,0.96647331]
[1744858478908,1e-08,84160.0,84159.0,0.83039331]
[1744858479256,1e-08,84160.0,84159.0,0.96647331]
[1744858494835,1e-08,84160.0,84159.0,0.83039331]
[1744858495035,1e-08,84160.0,84159.0,0.96643331]
[1744858505367,1e-08,84160.0,84159.0,1.30643331]
[1744858505588,1e-08,84160.0,84159.0,1.35533331]
[1744858505946,1e-08,84160.0,84159.0,1.40409007]
[1744858506348,1e-08,84160.0,84159.0,1.40109007]
[1744858506757,0.0008426,84169.0,84168.0,0.57761999]
[1744858506958,0.00097883,84169.0,84168.0,0.7465679]
[1744858508122,0.00197883,84169.0,84168.0,0.7535679]
[1744858508320,1e-08,84169.0,84168.0,0.7535679]
[1744858509153,1e-08,84169.0,84168.0,0.7565679]
[1744858509390,1e-08,84169.0,84168.0,0.76490075]
[1744858509551,1e-08,84169.0,84168.0,0.87120134]
[1744858510374,1e-08,84169.0,84168.0,1.29000134]
[1744858510733,1e-08,84169.0,84168.0,1.29898372]
[1744858510904,1e-08,84169.0,84168.0,1.29065087]
[1744858512368,1e-08,84169.0,84168.0,1.18435028]
[1744858525145,0.0008428,84193.0,84192.0,0.23755226]
[1744858525346,0.0008428,84193.0,84192.0,0.49252017]
[1744858525809,0.0008428,84193.0,84192.0,0.5045482]
[1744858526184,0.0008428,84193.0,84192.0,0.8445482]
[1744858526707,0.0008428,84193.0,84192.0,0.8485482]
[1744858526907,0.0008428,84193.0,84192.0,0.8445482]
[1744858527102,0.0018428,84193.0,84192.0,0.8445482]
[1744858527431,0.0028428,84193.0,84192.0,1.2703482]
[1744858527641,0.0018428,84193.0,84192.0,1.2703482]
[1744858527795,0.0018428,84193.0,84192.0,1.2743482]
[1744858529022,0.0018428,84193.0,84192.0,1.28303283]
[1744858530045,0.0018428,84193.0,84192.0,1.28343283]
[1744858531174,0.0018428,84193.0,84192.0,1.32843283]
[1744858537159,0.0008424,84202.0,84192.0,1.32843283]
[1744858537160,0.0489,84227.0,84211.0,0.24937132]
[1744858537389,0.00097893,84214.0,84213.0,0.23749302]
[1744858537617,0.00097893,84214.0,84213.0,0.35694093]
[1744858538057,0.00097893,84214.0,84213.0,0.49286093]
[1744858539884,0.00097893,84214.0,84213.0,0.49486093]
[1744858540388,0.00097893,84214.0,84213.0,0.49786093]
[1744858541030,0.00097893,84214.0,84213.0,0.49782093]
[1744858542692,0.00097893,84214.0,84213.0,0.91662093]
[1744858546537,0.00097893,84214.0,84213.0,0.55968]
[1744858546538,0.09587893,84214.0,84213.0,0.55968]
[1744858547295,0.09587893,84214.0,84213.0,0.55668]
[1744858547658,0.09587893,84214.0,84213.0,0.55968]
[1744858548418,0.09587893,84214.0,84213.0,0.4238]
[1744858548623,0.09587893,84214.0,84213.0,0.14088]
[1744858548830,0.10085242,84214.0,84213.0,0.13788]
[1744858549024,0.10085242,84214.0,84213.0,0.13588]
[1744858549227,0.10085242,84214.0,84213.0,0.13688]
[1744858549464,0.10085242,84214.0,84213.0,0.37637302]
[1744858549674,0.10085242,84214.0,84213.0,0.37537302]
[1744858550068,0.10085242,84214.0,84213.0,0.37337302]
[1744858550383,0.10385242,84214.0,84213.0,0.37337302]
[1744858554027,0.10385242,84214.0,84213.0,0.13588]
[1744858556309,0.10385242,84214.0,84212.0,0.23749582]
[1744858556691,0.00895242,84214.0,84212.0,0.23749582]
[1744858557048,0.00895242,84214.0,84212.0,0.23987054]
[1744858557370,0.00595242,84214.0,84212.0,0.23749582]
[1744858557543,0.00595242,84214.0,84212.0,0.23987053]
[1744858557544,0.00795242,84214.0,84212.0,0.23987053]
[1744858558644,0.00595242,84214.0,84212.0,0.23987053]
[1744858559043,0.00695242,84214.0,84212.0,0.23987053]
[1744858560545,0.00695242,84214.0,84212.0,0.23749582]
[1744858562202,0.00695242,84214.0,84212.0,0.23749582]
[1744858563573,0.01187465,84213.0,84207.0,0.14775549]
[1744858563772,0.0486,84212.0,84207.0,0.24938527]
[1744858563971,0.06047479,84212.0,84208.0,0.01187535]
[1744858564380,0.0486,84212.0,84209.0,0.01187521]
[1744858564513,0.00695242,84214.0,84211.0,0.01187493]
[1744858564715,0.00595242,84214.0,84211.0,0.01187493]
[1744858564915,0.00595242,84214.0,84212.0,0.23749457]
[1744858565737,0.00695242,84214.0,84212.0,0.23749457]
[1744858565957,0.00595242,84214.0,84212.0,0.23749457]
[1744858566377,0.00695242,84214.0,84212.0,0.23749457]
[1744858567602,0.00695242,84214.0,84212.0,0.23949457]
[1744858573264,0.00695242,84214.0,84213.0,0.0023747]
[1744858574242,0.00695242,84214.0,84213.0,0.12182261]
[1744858574457,0.00695242,84214.0,84213.0,0.11944791]
[1744858574794,0.00595242,84214.0,84213.0,0.11944791]
[1744858574947,0.00795242,84214.0,84213.0,0.12044791]
[1744858575147,0.00595242,84214.0,84213.0,0.12044791]
[1744858575359,0.00595242,84214.0,84213.0,0.11944791]
[1744858575697,0.00595242,84214.0,84213.0,0.12144791]
[1744858577961,0.00595242,84214.0,84213.0,0.54024791]
[1744858583665,0.00595242,84214.0,84213.0,0.67588791]
[1744858586830,0.00595242,84214.0,84213.0,0.68421252]
[1744858595094,0.00595242,84214.0,84213.0,0.54857252]
[1744858595291,0.00595242,84214.0,84213.0,0.68405252]
[1744858606785,0.00595242,84214.0,84213.0,1.07135252]
[1744858607198,0.00595242,84214.0,84213.0,1.11635252]
[1744858607514,0.00595242,84214.0,84213.0,1.13855959]
[1744858608040,0.00595242,84214.0,84213.0,1.13655959]
[1744858608238,0.00595242,84214.0,84213.0,1.13855959]
[1744858608409,0.00595242,84214.0,84213.0,1.14155959]
[1744858608615,0.00595242,84214.0,84213.0,1.24782176]
[1744858609337,0.00595242,84214.0,84213.0,1.24772176]
[1744858609972,0.00595242,84214.0,84213.0,1.14145959]
[1744858611225,0.00595242,84214.0,84213.0,1.14141959]
[1744858611688,0.00595242,84214.0,84213.0,1.00597959]
[1744858611969,0.00595242,84214.0,84213.0,1.11921252]
[1744858614664,0.00595242,84214.0,84213.0,1.07191252]
[1744858615893,0.00595242,84214.0,84213.0,1.02691252]
[1744858616300,0.00595242,84214.0,84213.0,1.04910235]
[1744858616650,0.00595242,84214.0,84213.0,0.89147252]
[1744858616872,0.00595242,84214.0,84213.0,1.02691252]
[1744858618671,0.00595242,84214.0,84213.0,1.04910266]
[1744858623930,0.00595242,84214.0,84213.0,0.91366266]
[1744858624145,0.00595242,84214.0,84213.0,1.04910266]
[1744858635197,0.00595242,84214.0,84213.0,0.91366266]
[1744858635402,0.00595242,84214.0,84213.0,1.04910266]
[1744858637222,0.00595242,84214.0,84213.0,1.01858791]
[1744858638016,0.00595242,84214.0,84213.0,0.91367709]
[1744858638214,0.00595242,84214.0,84213.0,1.04911709]
[1744858649499,0.0008424,84219.0,84218.0,0.23747892]
[1744858649690,0.0008878,84219.0,84218.0,0.45280105]
[1744858649894,0.0008878,84219.0,84218.0,0.47262999]
[1744858650483,0.0008878,84219.0,84218.0,0.48095601]
[1744858650655,0.0008878,84219.0,84218.0,0.48395601]
[1744858650859,0.0008878,84219.0,84218.0,0.82395601]
[1744858651355,0.0008878,84219.0,84218.0,1.24275601]
[1744858651784,0.0008878,84219.0,84218.0,1.24375601]
[1744858652802,0.0008878,84219.0,84218.0,1.24075601]
[1744858653215,0.0008878,84219.0,84218.0,1.24375601]
[1744858653372,0.0008878,84219.0,84218.0,1.24675379]
[1744858655214,1e-08,84219.0,84218.0,1.24675379]
[1744858656418,1e-08,84219.0,84218.0,1.38215379]
[1744858657881,1e-08,84219.0,84218.0,1.24675379]
[1744858658015,1e-08,84219.0,84218.0,1.38215379]
[1744858666426,1e-08,84219.0,84218.0,1.35995285]
[1744858666978,0.00188687,84229.0,84228.0,0.23745072]
[1744858667181,0.00193227,84229.0,84228.0,0.78402465]
[1744858667563,0.00193227,84229.0,84228.0,0.91942465]
[1744858667990,0.00193227,84229.0,84228.0,0.93115188]
[1744858668317,0.00193227,84229.0,84228.0,0.95532917]
[1744858669498,0.00193227,84229.0,84228.0,0.93315188]
[1744858670493,0.00193227,84229.0,84228.0,0.95532125]
[1744858671612,0.00193227,84229.0,84228.0,0.95332125]
[1744858671839,0.00193227,84229.0,84228.0,0.95632125]
[1744858672034,0.00193227,84229.0,84228.0,0.95832125]
[1744858674140,0.00193227,84229.0,84228.0,1.29832125]
[1744858677315,0.00193227,84229.0,84228.0,1.27615188]
[1744858681367,0.00193227,84229.0,84228.0,1.29830146]
[1744858689380,0.00193227,84229.0,84228.0,1.29826146]
[1744858689783,0.00193227,84229.0,84228.0,1.16290146]
[1744858689951,0.00193227,84229.0,84228.0,1.29826146]
[1744858690367,0.00193227,84229.0,84228.0,1.27611188]
[1744858692054,0.00193227,84229.0,84228.0,1.14075188]
[1744858692224,0.00193227,84229.0,84228.0,1.27611188]
[1744858693215,0.00193227,84229.0,84228.0,0.93611188]
[1744858693835,0.00193227,84229.0,84228.0,0.93311188]
[1744858694397,0.04883227,84229.0,84228.0,0.81366397]
[1744858694604,0.04883227,84229.0,84228.0,0.81466397]
[1744858697477,0.04883227,84229.0,84228.0,0.83682453]
[1744858699718,0.00193227,84229.0,84228.0,0.83682453]
[1744858704012,0.00193227,84229.0,84228.0,0.8250973]
[1744858707313,0.00193227,84229.0,84228.0,0.80093674]
[1744858707782,0.00193227,84229.0,84228.0,0.82307718]
[1744858707783,0.00293227,84229.0,84228.0,0.82307718]
[1744858720185,0.00293227,84229.0,84228.0,0.68771718]
[1744858720391,0.00293227,84229.0,84228.0,0.82307718]
[1744858721401,0.00293227,84229.0,84228.0,0.94252509]
[1744858723205,0.00293227,84229.0,84228.0,0.80716509]
[1744858723406,0.00293227,84229.0,84228.0,0.94252509]
[1744858728380,0.00293227,84229.0,84228.0,0.99192509]
[1744858730245,0.00193227,84229.0,84228.0,0.99192509]
[1744858730683,0.00193227,84229.0,84228.0,0.99292509]
[1744858731107,0.00193227,84229.0,84228.0,0.99192509]
[1744858731480,0.00193227,84229.0,84228.0,0.85856509]
[1744858731799,0.00193227,84229.0,84228.0,0.99392509]
[1744858731945,0.00193227,84229.0,84228.0,0.99192509]
[1744858732163,0.00193227,84229.0,84228.0,0.99492509]
[1744858733383,0.00193227,84229.0,84228.0,1.33492509]
[1744858734909,0.00193227,84229.0,84228.0,1.38252509]
[1744858742603,1e-08,84229.0,84228.0,1.39706594]
[1744858743666,1e-08,84229.0,84228.0,1.39406594]
[1744858743977,1e-08,84229.0,84228.0,1.39706594]
[1744858744292,1e-08,84229.0,84228.0,1.40106594]
[1744858744504,1e-08,84229.0,84228.0,1.39706594]
[1744858744711,1e-08,84229.0,84228.0,1.40206594]
[1744858746334,1e-08,84229.0,84228.0,1.43510614]
[1744858747096,0.0008426,84245.0,84244.0,0.67140563]
[1744858747298,0.00129673,84245.0,84244.0,0.92633354]
[1744858747520,0.00129673,84245.0,84244.0,1.34513353]
[1744858747856,0.00129673,84245.0,84244.0,1.36727397]
[1744858748257,0.00129673,84245.0,84244.0,1.37559999]
[1744858748788,0.00129673,84245.0,84244.0,1.38471786]
[1744858749222,0.00129673,84245.0,84244.0,1.38671786]
[1744858749223,0.00229673,84245.0,84244.0,1.38671786]
[1744858749423,1e-08,84245.0,84244.0,1.38671786]
[1744858749650,0.0004212,84248.0,84247.0,0.57739717]
[1744858749858,0.00050203,84248.0,84247.0,1.11564507]
[1744858750020,0.00050203,84248.0,84247.0,1.13778551]
[1744858750429,0.00050203,84248.0,84247.0,1.14611153]
[1744858750932,0.00050203,84248.0,84247.0,1.15011153]
[1744858751142,0.0004213,84253.0,84252.0,0.62238308]
[1744858751353,0.0004213,84253.0,84252.0,0.74183099]
[1744858751542,0.0004213,84253.0,84252.0,0.76397143]
[1744858752097,0.0004213,84253.0,84252.0,0.77229745]
[1744858752858,0.0004213,84253.0,84252.0,0.77429745]
[1744858753629,0.0004213,84253.0,84252.0,0.91377745]
[1744858753840,0.0004213,84253.0,84252.0,1.33257744]
[1744858763720,0.0004213,84253.0,84252.0,1.15209744]
[1744858763873,0.0004213,84253.0,84252.0,1.28757744]
[1744858764324,0.0004213,84253.0,84252.0,1.28357744]
[1744858764631,0.0004213,84253.0,84252.0,1.28657744]
[1744858764929,0.0004213,84253.0,84252.0,1.28457744]
[1744858765308,0.0004213,84253.0,84252.0,1.28557744]
[1744858767547,0.0004213,84253.0,84252.0,1.28557744]
[1744858775020,0.0004213,84253.0,84252.0,0.82612953]
[1744858775189,0.0004213,84253.0,84252.0,0.82312953]
[1744858775400,0.0004213,84253.0,84252.0,0.82512953]
[1744858775782,0.0004213,84253.0,84252.0,0.82612953]
[1744858776182,0.0004213,84253.0,84252.0,0.82512953]
[1744858776663,0.0004213,84253.0,84252.0,0.82212953]
[1744858777078,0.0004213,84253.0,84252.0,0.82412953]
[1744858777402,0.0004213,84253.0,84252.0,0.82212953]
[1744858777910,0.0014213,84253.0,84252.0,0.82412953]
[1744858780190,0.0014213,84253.0,84252.0,0.81580351]
[1744858783286,0.0014213,84253.0,84252.0,0.39700352]
[1744858783925,0.0014213,84253.0,84252.0,0.37486308]
[1744858784540,0.0014213,84253.0,84252.0,0.3970012]
[1744858788090,0.0014213,84253.0,84252.0,0.15961812]
[1744858788305,0.00656274,84253.0,84252.0,0.15961812]
[1744858791253,0.00656274,84253.0,84252.0,0.02413812]
[1744858791427,0.05346274,84253.0,84252.0,0.02413812]
[1744858792202,0.05346274,84253.0,84252.0,0.02213812]
[1744858793006,0.05246274,84253.0,84252.0,0.02213812]
[1744858793426,0.05246274,84253.0,84252.0,0.02313812]
[1744858793947,0.05546274,84253.0,84252.0,0.02313812]
[1744858799481,0.00856274,84253.0,84252.0,0.02313812]
[1744858804537,0.00856274,84253.0,84252.0,0.11803812]
[1744858805191,0.00856274,84253.0,84252.0,0.23748603]
[1744858805416,0.00856274,84253.0,84252.0,0.24578499]
[1744858805690,0.00856274,84253.0,84252.0,0.24478499]
[1744858806437,0.00556274,84253.0,84252.0,0.24578499]
[1744858806684,0.00756274,84253.0,84252.0,0.24578499]
[1744858806888,0.00556274,84253.0,84252.0,0.24478499]
[1744858807281,0.00656274,84253.0,84252.0,0.24678499]
[1744858807463,0.00556274,84253.0,84252.0,0.24678499]
[1744858807745,0.00656274,84253.0,84252.0,0.24678499]
[1744858807976,0.00656274,84253.0,84252.0,0.25784607]
[1744858808910,0.00656274,84253.0,84252.0,0.24678499]
[1744858809436,0.00656274,84253.0,84252.0,0.24478499]
[1744858809592,0.00656274,84253.0,84252.0,0.24678499]
[1744858809799,0.00656274,84253.0,84252.0,0.66558498]
[1744858810517,0.00656274,84253.0,84252.0,1.00558498]
[1744858812308,0.00656274,84253.0,84252.0,1.00358498]
[1744858812515,0.00656274,84253.0,84252.0,1.00658498]
[1744858812716,0.00556274,84253.0,84252.0,1.00658498]
[1744858812965,0.00556274,84253.0,84252.0,1.00858498]
[1744858815332,0.00556274,84253.0,84252.0,1.14390498]
[1744858817648,0.0004213,84253.0,84252.0,1.14390498]
[1744858820141,0.0004213,84253.0,84252.0,1.14190498]
[1744858820363,1e-08,84253.0,84252.0,1.13890498]
[1744858820654,1e-08,84253.0,84252.0,1.14490498]
[1744858821063,1e-08,84253.0,84252.0,1.14890498]
[1744858822318,1e-08,84253.0,84252.0,1.14490498]
[1744858823135,1e-08,84253.0,84252.0,1.14990498]
[1744858824770,1e-08,84253.0,84252.0,1.14160602]
[1744858829442,1e-08,84253.0,84252.0,1.1498937]
[1744858835463,1e-08,84253.0,84252.0,1.14160602]
[1744858837279,1e-08,84253.0,84252.0,1.1499106]
[1744858838272,1e-08,84253.0,84252.0,1.1498706]
[1744858839431,1e-08,84253.0,84252.0,1.14156602]
[1744858840936,1e-08,84253.0,84252.0,2.36296602]
[1744858842596,1e-08,84253.0,84252.0,2.37127204]
[1744858843849,1e-08,84253.0,84252.0,2.27637204]
[1744858844471,1e-08,84253.0,84252.0,2.26806602]
[1744858845149,0.00188132,84259.0,84256.0,0.01186859]
[1744858845348,0.00178637,84259.0,84257.0,0.11944791]
[1744858845621,0.00178637,84259.0,84257.0,0.14158603]
[1744858846057,0.00178637,84259.0,84258.0,0.15741812]
[1744858846327,0.00178637,84259.0,84258.0,0.27686603]
[1744858847576,0.00178637,84259.0,84258.0,0.27786603]
[1744858848201,0.00178637,84259.0,84258.0,0.28086603]
[1744858850801,0.00178637,84259.0,84258.0,0.69966602]
[1744858857526,1e-08,84259.0,84258.0,0.69966602]
[1744858857683,1e-08,84259.0,84258.0,1.03966602]
[1744858859798,1e-08,84263.0,84262.0,0.23735491]
[1744858859996,1e-08,84263.0,84262.0,0.35917592]
[1744858860212,1e-08,84263.0,84262.0,0.35680282]
[1744858860554,1e-08,84263.0,84262.0,0.37894094]
[1744858862122,1e-08,84263.0,84262.0,0.38094094]
[1744858862492,1e-08,84263.0,84262.0,1.13974093]
[1744858862694,1e-08,84263.0,84262.0,1.14374093]
[1744858863338,1e-08,84263.0,84262.0,1.15554699]
[1744858864131,1e-08,84263.0,84262.0,0.95082699]
[1744858864332,1e-08,84263.0,84262.0,0.56638602]
[1744858864528,0.2825521,84263.0,84262.0,0.02813812]
[1744858864830,0.04500001,84263.0,84262.0,0.26549303]
[1744858865553,0.04500001,84263.0,84262.0,0.26149303]
[1744858865765,0.04500001,84263.0,84262.0,0.25949303]
[1744858865990,0.04500001,84263.0,84262.0,0.26249303]
[1744858866577,0.04500001,84263.0,84262.0,0.25949303]
[1744858866778,0.04900001,84263.0,84262.0,0.26049303]
[1744858866935,0.04900001,84263.0,84262.0,0.02313812]
[1744858867130,0.04900001,84263.0,84262.0,0.001]
[1744858867479,0.0498,84254.0,84251.0,0.23738584]
[1744858867892,0.0452,84253.0,84251.0,0.23738584]
[1744858869637,0.01186915,84252.0,84243.0,0.01187042]
[1744858869839,0.01186915,84252.0,84248.0,0.23739254]
[1744858870046,0.01186915,84252.0,84238.0,0.37270149]
[1744858870047,0.01187028,84244.0,84238.0,0.13528]
[1744858870179,0.01187028,84244.0,84239.0,0.23741972]
[1744858870378,0.0475,84245.0,84241.0,0.23741401]
[1744858870619,0.0475,84245.0,84242.0,0.23741126]
[1744858870766,0.0475,84245.0,84243.0,0.23740775]
[1744858872163,0.002,84244.0,84243.0,0.23740775]
[1744858872299,0.0475,84245.0,84243.0,0.23740775]
[1744858872484,0.0475,84245.0,84243.0,0.23840775]
[1744858872685,0.0495,84245.0,84243.0,0.23840775]
[1744858872890,0.0495,84245.0,84243.0,0.23740775]
[1744858872891,0.0475,84245.0,84243.0,0.23740775]
[1744858873316,0.002,84244.0,84243.0,0.23840775]
[1744858874065,0.0475,84245.0,84243.0,0.23840775]
[1744858874670,0.0475,84245.0,84243.0,0.23740775]
[1744858875050,0.0475,84245.0,84243.0,0.23840775]
[1744858875454,0.0495,84245.0,84243.0,0.23840775]
[1744858879069,0.40525354,84244.0,84243.0,0.001]
[1744858879403,0.40525354,84244.0,84218.0,0.0008426]
[1744858879404,0.2374479,84229.0,84218.0,0.0008426]
[1744858879727,0.01187281,84226.0,84218.0,0.0008426]
[1744858879939,0.30190285,84224.0,84218.0,0.0008426]
[1744858880151,0.25201695,84219.0,84218.0,0.0008426]
[1744858880351,0.23748738,84215.0,84209.0,0.0008426]
[1744858880468,0.35693529,84215.0,84209.0,0.0008426]
[1744858880669,0.35693529,84215.0,84214.0,0.00129633]
[1744858881309,0.39131489,84215.0,84214.0,0.00129633]
[1744858882038,0.35793529,84215.0,84214.0,0.00129633]
[1744858882546,0.36293529,84215.0,84214.0,0.00129633]
[1744858887404,0.71747614,84215.0,84214.0,0.00129633]
[1744858887580,0.78397614,84215.0,84214.0,0.00129633]
[1744858888106,0.79493109,84215.0,84214.0,0.00129633]
[1744858888275,0.914379,84215.0,84214.0,0.00129633]
[1744858888482,0.910379,84215.0,84214.0,0.00129633]
[1744858888722,0.917379,84215.0,84214.0,0.00129633]
[1744858888903,0.909379,84215.0,84214.0,0.00129633]
[1744858889224,0.910379,84215.0,84214.0,0.00229633]
[1744858889389,0.919379,84215.0,84214.0,0.00229633]
[1744858893308,1.054739,84215.0,84214.0,0.00229633]
[1744858893761,0.93529109,84215.0,84214.0,0.00229633]
[1744858894948,0.91529109,84215.0,84214.0,0.00229633]
[1744858895340,0.12944791,84215.0,84214.0,0.00229633]
[1744858895537,0.36693529,84215.0,84214.0,0.00229633]
[1744858896133,0.24748738,84215.0,84214.0,0.00229633]
[1744858898140,0.24748738,84215.0,84214.0,0.00229633]
[1744858899684,0.42699458,84215.0,84214.0,0.00229633]
[1744858899964,0.36693529,84215.0,84214.0,0.00229633]
[1744858900391,0.36593529,84215.0,84214.0,0.00229633]
[1744858900599,0.36793529,84215.0,84214.0,0.00229633]
[1744858900963,0.35893529,84215.0,84214.0,0.00129633]
[1744858901364,0.36593529,84215.0,84214.0,0.00229633]
[1744858905090,0.36371717,84215.0,84214.0,0.00229633]
[1744858905292,0.42340865,84215.0,84214.0,0.00229633]
[1744858905495,0.47270865,84215.0,84214.0,0.00229633]
[1744858906083,0.49270865,84215.0,84214.0,0.00229633]
[1744858908219,0.83270865,84215.0,84214.0,0.00229633]
[1744858909435,0.83070865,84215.0,84214.0,0.00229633]
[1744858909846,0.83270865,84215.0,84214.0,0.00229633]
[1744858910335,0.83070865,84215.0,84214.0,0.00229633]
[1744858910533,0.83270865,84215.0,84214.0,0.00229633]
[1744858911120,0.82570865,84215.0,84214.0,0.00129633]
[1744858911324,0.82570865,84215.0,84214.0,0.00229633]
[1744858911539,0.83370865,84215.0,84214.0,0.00229633]
[1744858913894,0.95239006,84215.0,84214.0,0.00229633]